Cogmind - Beta 13 *** ADVENTURER MODE // 2024.04.08 @ 17:05:10 Player: XorOwl Result: Destroyed by S-27 Virus with Autogun Performance ------------- Evolutions (3) 1500 Regions Visited (5) 1000 Robots Destroyed (57) 285 Value Destroyed (1610) 1610 Prototype IDs (10) 200 Alien Tech Used (0) 0 Bonus (500) 500 TOTAL SCORE: 5095 Bonus ------- Entered DSFs 500 Cogmind --------- Core Integrity 0/700 Matter 259/300 Energy 14/100 System Corruption 0% Temperature Cool (0) Movement Walking (90) Location -7/DSF Parts ------- > --- POWER (2) -------- (None) > --- PROPULSION (5) --- VSS Leg VSS Leg > --- UTILITY (4) ------ Improved Signal Interpreter Improved Terrain Scan Processor Hardened Medium Armor Plating > --- WEAPON (2) ------- High-powered Shotgun > --- INVENTORY (5) ---- Light Nuclear Core Fission Core Improved Datajack Peak State ------------ > --- POWER ------------ Deuterium Engine > --- PROPULSION ------- VTOL Module Cesium-ion Thruster Improved VTOL Module Xenon Bombardment Thruster > --- UTILITY ---------- Improved Sensor Array Improved Signal Interpreter Reaction Control System Hacking Suite > --- WEAPON ----------- Pulse Rifle Heavy Flail > --- INVENTORY -------- Terrain Scanner Improved Terrain Scan Processor ECM Suite Improved Grenade Launcher Improved Datajack [Rating: 35] Favorites ----------- Power Light Nuclear Core Engine Improved Ion Engine Power Core Light Nuclear Core Propulsion Armored Treads Treads Armored Treads Leg VSS Leg Flight Unit Xenon Bombardment Thruster Utility Improved Signal Interpreter Device Tractor Beam Storage Small Storage Unit Processor Improved Signal Interpreter Hackware Hacking Suite Protection Hardened Medium Armor Plating Weapon High-powered Shotgun Energy Gun Pulse Rifle Ballistic Gun High-powered Shotgun Launcher Improved Grenade Launcher Impact Weapon Heavy Flail Build | -11 -10 -9 -8 -7 -7 ------- Run | Yrd Mat Mat Mat Fac DSF Slots Evolved 6 | . . 2 2 2 . Power 1 | . . . . 1 . Propulsion 3 | . . 2 . 1 . Utility 2 | . . . 2 . . Weapon . | . . . . . . Parts Attached 82 | 6 2 14 43 . 17 Power 9 | 1 . 1 5 . 2 Engine 5 | 1 . 1 3 . . Core 4 | . . . 2 . 2 Reactor . | . . . . . . Propulsion 23 | 2 . 4 11 . 6 Treads 13 | 2 . 4 4 . 3 Leg 2 | . . . . . 2 Wheel . | . . . . . . Hover . | . . . . . . Flight 8 | . . . 7 . 1 Utility 20 | 1 2 1 11 . 5 Device 14 | . 1 1 9 . 3 Storage 1 | 1 . . . . . Processor 3 | . 1 . 1 . 1 Hackware 1 | . . . 1 . . Protection 1 | . . . . . 1 Artifact . | . . . . . . Weapon 30 | 2 . 8 16 . 4 Energy Gun 3 | . . . 3 . . Energy Cannon . | . . . . . . Ballistic Gun 9 | 2 . 5 1 . 1 Ballistic Cannon . | . . . . . . Launcher 12 | . . 3 8 . 1 Special Weapon . | . . . . . . Impact Weapon 6 | . . . 4 . 2 Slashing Weapon . | . . . . . . Piercing Weapon . | . . . . . . Special Melee Weapon . | . . . . . . Unidentified Prototypes 2 | . . . 2 . . Parts Lost 27 | . . . 9 . 18 Power 4 | . . . 1 . 3 Propulsion 11 | . . . 4 . 7 Utility 8 | . . . 3 . 5 Weapon 4 | . . . 1 . 3 Highest Loss Streak 18 | . . . 6 . 18 To Critical Strikes . | . . . . . . Average Slot Usage (%) 89 | . 94 99 90 76 46 Engine 6 | . 14 11 3 . . Core 2 | . . . 3 7 3 Treads 23 | . 28 43 16 . 2 Flight 10 | . . . 16 23 8 Device 18 | . 8 11 25 15 3 Processor 9 | . 8 11 9 7 11 Ballistic Gun 9 | . 28 17 4 . 1 Launcher 3 | . . 4 3 . . Impact Weapon 3 | . . . 5 7 2 Naked Turns . | . . . . . . Heaviest Build 21 | 14 14 14 21 13 17 Greatest Support 84 | 40 40 80 80 14 84 Greatest Overweight (x) 3 | . . . 1 . 3 Average Overweight (x) . | . . . . . . Largest Inventory Capacity 8 | 8 8 5 5 5 5 Average Capacity 5 | 6 5 5 5 5 5 Most Carried 5 | 4 3 5 5 5 5 Average Carried 4 | 1 2 4 4 5 2 Final Capacity 8 | 8 5 5 5 5 5 Final Carried 5 | 1 2 5 5 5 3 Class Distribution -------------------- 68% | Mutant 11% | Ninja 8% | Sprinter 6% | Hacker-Scout 4% | Hacker-Sprinter Dominant Class ---------------- Mutant | -10/Materials Mutant | -9/Materials Mutant | -8/Materials Hacker-Sprinter | -7/Factory Mutant | -7/DSF Resources | -11 -10 -9 -8 -7 -7 ----------- Run | Yrd Mat Mat Mat Fac DSF Matter Collected 1562 | 149 12 299 947 . 155 Remotely 722 | . . 194 528 . . Salvage Created 1753 | . 71 329 1167 . 186 Parts 79 | . 9 25 35 . 10 Haulers Intercepted 1 | . . . 1 . . Recyclers Shooed . | . . . . . . Parts Field Recycled . | . . . . . . Retrieved Matter . | . . . . . . Parts Self-Destructed . | . . . . . . Prevented . | . . . . . . Kills | -11 -10 -9 -8 -7 -7 ------- Run | Yrd Mat Mat Mat Fac DSF Combat Hostiles Destroyed 45 | . 3 8 24 . 10 Melee 7 | . . . 6 . 1 Guns 19 | . 3 4 7 . 5 AOE 11 | . . 4 3 . 4 Classes Destroyed 14 | . 2 5 4 . 3 Worker 4 | . . 1 3 . . Builder 4 | . . 1 3 . . Tunneler 1 | . . . 1 . . Hauler 1 | . . . 1 . . Recycler 1 | . . . 1 . . Watcher 6 | . 2 . 4 . . Swarmer 8 | . 3 . 5 . . Cutter 4 | . . . . . 4 Grunt 12 | . . 3 9 . . Brawler 1 | . . 1 . . . Sentry 12 | . . 4 8 . . Specialist 1 | . . . . . 1 Hunter 2 | . . . 2 . . Assembled 5 | . . . . . 5 Best Kill Streak 5 | . 4 4 4 . 5 Combat Bots Only 5 | . 3 4 4 . 5 Max Kills in Single Turn 3 | . 1 2 3 . 2 Gunslinging . | . . . . . . Exploded 2 | . . 2 1 . 2 Melee 1 | . . . 1 . 1 Uniques/NPCs Destroyed . | . . . . . . Combat | -11 -10 -9 -8 -7 -7 -------- Run | Yrd Mat Mat Mat Fac DSF Hostile Shots Fired 373 | . 10 45 159 . 159 Missed 117 | . 2 14 54 . 47 Damage Taken 3661 | . 86 341 1238 . 1996 Core 913 | . 4 10 198 . 701 Absorbed by Shields 47 | . . . . . 47 Ignored by Resistances 1054 | . 28 98 354 . 574 Core Remaining (%) 89 | 100 98 97 64 . . Volleys Fired 96 | . 6 24 46 . 20 Largest 2 | . 2 2 2 . 2 Hottest 99 | . 40 60 99 . 99 Shots Fired 136 | . 12 42 61 . 21 Gun 103 | . 12 31 43 . 17 Cannon . | . . . . . . Launcher 33 | . . 11 18 . 4 Special . | . . . . . . Kinetic 93 | . 12 31 34 . 16 Thermal 10 | . . . 9 . 1 Explosive 33 | . . 11 18 . 4 Electromagnetic . | . . . . . . Robot Hit Streak 26 | . 7 26 15 . 14 Robot Miss Streak 3 | . 2 3 3 . 2 Penetration Max . | . . . . . . Secondary Targets 4 | . 1 . 3 . . Max Gunslinging Chain 1 | . 1 . 1 . . Shots Hit Robots 160 | . 7 36 93 . 24 Core Hits 76 | . 5 18 35 . 18 Critical Kills 1 | . . . 1 . . Critical Parts Destroyed 6 | . . . 5 . 1 Critical Strikes 9 | . . . 8 . 1 Burn 1 | . . . 1 . . Smash 8 | . . . 7 . 1 Melee Attacks 67 | . . . 61 . 6 Impact 67 | . . . 61 . 6 Slashing . | . . . . . . Piercing . | . . . . . . Sneak Attacks 7 | . . . 7 . . Combat Hostiles 1 | . . . 1 . . Follow-up Attacks . | . . . . . . Damage Inflicted 5768 | . 87 811 3846 . 1024 Guns 1566 | . 87 378 797 . 304 Cannons . | . . . . . . Explosions 1713 | . . 433 766 . 514 Melee 2489 | . . . 2283 . 206 Ramming . | . . . . . . Kinetic 1410 | . 87 378 657 . 288 Thermal 464 | . . . 448 . 16 Explosive 1405 | . . 433 458 . 514 Electromagnetic . | . . . . . . Impact 2489 | . . . 2283 . 206 Slashing . | . . . . . . Piercing . | . . . . . . Highest Corruption . | . . . . . . Average Corruption . | . . . . . . Corruption Purged . | . . . . . . Corruption Blocked . | . . . . . . Overload Shots . | . . . . . . Overflow Damage 1171 | . . . 1079 . 92 Projectiles . | . . . . . . Explosions 198 | . . . 162 . 36 Melee 973 | . . . 917 . 56 Knockbacks 7 | . . . 6 . 1 Impact 7 | . . . 6 . 1 Kinetic . | . . . . . . Secondary . | . . . . . . Self-Inflicted Damage 176 | . . . 51 . 125 Shots 4 | . . . 1 . 3 Rammed 1 | . . . 1 . . Targets Rammed 1 | . . . 1 . . Kicked . | . . . . . . Crushed . | . . . . . . Highest Temperature 191 | . . 16 191 . . Average Temperature 38 | . . 6 43 . . Received Heat Transfer 888 | . . 177 711 . . Siege Activations . | . . . . . . Robots Corrupted . | . . . . . . Combat Hostiles . | . . . . . . Parts Fried 18 | . . . 18 . . Impact Corruptions 34 | . . . 32 . 2 Robots Melted . | . . . . . . Combat Hostiles . | . . . . . . Parts Melted 1 | . . . 1 . . Heat Transferred 607 | . . . 570 . 37 Parts Sabotaged . | . . . . . . Parts Stolen . | . . . . . . Parts Stripped . | . . . . . . Power Chain Reactions . | . . . . . . Alert | -11 -10 -9 -8 -7 -7 ------- Run | Yrd Mat Mat Mat Fac DSF Peak Influence 402 | . 85 241 402 75 133 Initial 75 | . . 30 9 75 47 Average 120 | . 70 72 158 75 97 Maximum Alert Level 2 | . . 1 2 . . Low Security (%) 78 | 100 100 96 63 100 100 Level 1 19 | . . 3 32 . . Level 2 1 | . . . 3 . . Level 3 . | . . . . . . Level 4 . | . . . . . . Level 5 . | . . . . . . High Security . | . . . . . . Max Security . | . . . . . . Squads Dispatched 7 | . . . 4 . 3 Investigation 3 | . . . 3 . . Extermination . | . . . . . . Reinforcement 4 | . . . 1 . 3 Assault . | . . . . . . Garrison . | . . . . . . Intercept . | . . . . . . Searches Triggered . | . . . . . . Construction Impeded . | . . . . . . Haulers Reinforced . | . . . . . . Active Scanning Responses . | . . . . . . Cargo Convoy Interrupts . | . . . . . . Stealth | -11 -10 -9 -8 -7 -7 --------- Run | Yrd Mat Mat Mat Fac DSF Distress Signals 4 | . . . 4 . . Communications Jammed . | . . . . . . Distress Signals . | . . . . . . Times Spotted 99 | . 5 10 43 . 41 Peak Tracking Total 12 | . 3 4 10 . 12 Tactical Retreats 8 | . . . 4 . 4 Traps | -11 -10 -9 -8 -7 -7 ------- Run | Yrd Mat Mat Mat Fac DSF Traps Triggered 8 | . 2 . 5 . 1 Indirectly . | . . . . . . Trap Hack Attempts . | . . . . . . Triggered . | . . . . . . Disarmed . | . . . . . . Reprogrammed . | . . . . . . Reused . | . . . . . . Traps Extracted . | . . . . . . Installed . | . . . . . . Triggered . | . . . . . . Machines | -11 -10 -9 -8 -7 -7 ---------- Run | Yrd Mat Mat Mat Fac DSF Machines Disabled 2 | . . . 2 . . Max in Single Turn 2 | . . . 2 . . Machines Repaired . | . . . . . . Machines Dismantled . | . . . . . . Machines Sabotaged . | . . . . . . Overloaded Fab Kills . | . . . . . . Hacking | -11 -10 -9 -8 -7 -7 --------- Run | Yrd Mat Mat Mat Fac DSF Machines Accessed 14 | . . 4 9 1 . Terminals 12 | . . 4 7 1 . Fabricators . | . . . . . . Repair Stations . | . . . . . . Recycling Units 1 | . . . 1 . . Scanalyzers 1 | . . . 1 . . Garrison Access . | . . . . . . Total Hacks 28 | . . 6 21 1 . Successful 20 | . . 3 16 1 . Failed 8 | . . 3 5 . . Catastrophic . | . . . . . . Database Lockouts . | . . . . . . Manual 1 | . . . 1 . . Terminals 25 | . . 6 18 1 . Fabricators . | . . . . . . Repair Stations . | . . . . . . Recycling Units 1 | . . . 1 . . Scanalyzers 2 | . . . 2 . . Garrison Access . | . . . . . . Terminal Hacks 17 | . . 3 13 1 . Record 4 | . . 1 3 . . Robot Analysis 1 | . . . 1 . . Prototype ID Bank 4 | . . 2 2 . . Open DSF 1 | . . . . 1 . Emergency Access Points 1 | . . . 1 . . Alert Level 2 | . . . 2 . . Unreport Threat 1 | . . . 1 . . Locate Traps 1 | . . . 1 . . Transport Status 1 | . . . 1 . . Registered Components 1 | . . . 1 . . Fabricator Hacks . | . . . . . . Repair Station Hacks . | . . . . . . Recycling Unit Hacks 1 | . . . 1 . . Report Inventory 1 | . . . 1 . . Scanalyzer 2 | . . . 2 . . Insert Component 1 | . . . 1 . . Analyze 1 | . . . 1 . . Garrison Access Hacks . | . . . . . . Unauthorized Hacks . | . . . . . . Terminals . | . . . . . . Fabricators . | . . . . . . Repair Stations . | . . . . . . Recycling Units . | . . . . . . Scanalyzers . | . . . . . . Garrison Access . | . . . . . . Data Cores Recovered . | . . . . . . Used . | . . . . . . Hacking Detections 9 | . . 3 6 . . Full Trace Events 2 | . . . 2 . . Feedback Events . | . . . . . . Feedback Blocked . | . . . . . . Robot Schematics Acquired . | . . . . . . Robots Built . | . . . . . . Authchips . | . . . . . . Time . | . . . . . . Total Robot Build Rating . | . . . . . . Part Schematics Acquired 1 | . . . 1 . . Parts Built . | . . . . . . Authchips . | . . . . . . Time . | . . . . . . Total Part Build Rating . | . . . . . . Parts Repaired . | . . . . . . Time . | . . . . . . Parts Recycled . | . . . . . . Recycled Matter . | . . . . . . Retrieved Matter . | . . . . . . Retrieved Components . | . . . . . . Parts Scanalyzed 1 | . . . 1 . . Part Schematics Acquired 1 | . . . 1 . . Parts Damaged . | . . . . . . Bothacking | -11 -10 -9 -8 -7 -7 ------------ Run | Yrd Mat Mat Mat Fac DSF Used RIF Installer . | . . . . . . Robots Hacked . | . . . . . . Non-combat . | . . . . . . Combat . | . . . . . . Robot Hacks Applied . | . . . . . . Relay Couplers Released . | . . . . . . Fabnet Peak Effective % . | . . . . . . Robots Rewired . | . . . . . . Allies Hacked . | . . . . . . Hacks Repelled . | . . . . . . Allies | -11 -10 -9 -8 -7 -7 -------- Run | Yrd Mat Mat Mat Fac DSF Total Allies . | . . . . . . Largest Group . | . . . . . . Highest-Rated Group . | . . . . . . Highest-Rated Ally . | . . . . . . Total Orders . | . . . . . . Ally Attacks . | . . . . . . Total Damage . | . . . . . . Kills . | . . . . . . Allies Corrupted . | . . . . . . Allies Melted . | . . . . . . Intel | -11 -10 -9 -8 -7 -7 ------- Run | Yrd Mat Mat Mat Fac DSF Robot Analysis Total 1 | . . . 1 . . Derelict Logs Recovered . | . . . . . . Drone Launches . | . . . . . . Drone Recoveries . | . . . . . . Exploration | -11 -10 -9 -8 -7 -7 ------------- Run | Yrd Mat Mat Mat Fac DSF Turns Passed 3073 | 68 160 895 1719 9 222 Spaces Moved 2304 | 40 86 464 1446 32 236 Core 46 | 7 . . . . 39 Treads 964 | 33 86 464 372 . 9 Legs 34 | . . . . . 34 Wheels . | . . . . . . Hover . | . . . . . . Flight 1260 | . . . 1074 32 154 Fastest Speed 27 | 50 160 160 27 29 29 Average Speed 89 | 140 160 169 66 29 49 Slowest Speed 250 | 160 160 170 250 29 200 Overloaded Moves . | . . . . . . Propulsion Burnouts . | . . . . . . Robots Hopped 3 | . . . 3 . . Cave-ins Triggered . | . . . . . . Exploration Rate (%) 38 | 4 27 36 68 1 94 Regions Visited 5 Branch Regions . Pre-discovered Areas . | . . . . . . Known Exits Taken 4 | . 1 1 1 1 . Unknown Exits Taken 1 | 1 . . . . . Scrap Searched . | . . . . . . Spaces Dug 16 | . . . 15 . 1 Terrain Destroyed 129 | . . 28 85 . 16 Melee 16 | . . . 15 . 1 Projectile . | . . . . . . AOE 113 | . . 28 70 . 15 Terrain Rammed . | . . . . . . Walls Destroyed . | . . . . . . Machines Disabled . | . . . . . . Actions | -11 -10 -9 -8 -7 -7 --------- Run | Yrd Mat Mat Mat Fac DSF Total 3066 | 52 98 528 2047 31 310 Wait 422 | . . 8 410 . 4 Move 2293 | 39 85 463 1439 31 236 Hop 3 | . . . 3 . . Pick Up 52 | 7 3 11 20 . 11 Fast Attach 17 | . . . 14 . 3 Attach 38 | 6 2 2 16 . 12 Detach 5 | . 1 . 3 . 1 Swap 27 | . . 12 13 . 2 Drop 32 | . 1 8 21 . 2 Fire 96 | . 6 24 46 . 20 Melee 67 | . . . 61 . 6 Ram . | . . . . . . Kick . | . . . . . . Crush 1 | . . . 1 . . Escape Stasis 13 | . . . . . 13 Rewire . | . . . . . . Trap . | . . . . . . Miscellaneous . | . . . . . . Route ------- -11/Scrapyard -10/Materials -9/Materials -8/Materials (discovered 2 exits: *Fac x2) -7/Factory -7/DSF (discovered 1 exit: [*Fac]) History --------- Turn | Location | Event 7 | -11/Scrapyard | Discovered new exit (range 16) 69 | -11/Scrapyard | Entered Materials 197 | -10/Materials | Discovered new exit (range 10) 228 | -10/Materials | Identified exit to Materials 229 | -10/Materials | Entered another Materials area 229 | -9/Materials | Evolved 2 slots: Propulsion x2 309 | -9/Materials | Build established: Mutant 593 | -9/Materials | Discovered new exit (range 12) 1122 | -9/Materials | Identified exit to Materials 1124 | -9/Materials | Entered another Materials area 1124 | -8/Materials | Evolved 2 slots: Utility x2 2184 | -8/Materials | Lost 6 parts (1p1n3u1w) 2212 | -8/Materials | Discovered new exit (range 15) 2539 | -8/Materials | Build established: Ninja 2836 | -8/Materials | Discovered new exit (range 7) 2837 | -8/Materials | Identified exit to Factory 2843 | -8/Materials | Entered Factory 2843 | -7/Factory | Evolved 2 slots: Power x1, Propulsion x1 2852 | -7/Factory | Identified exit to DSF 2852 | -7/Factory | Entered DSF 2862 | -7/DSF | Assembled infested the area 2879 | -7/DSF | Additional patrols routed to DSF 2881 | -7/DSF | Discovered new exit (range 12) 2966 | -7/DSF | Core integrity fell below 50% 2985 | -7/DSF | Core integrity fell below 20% 3002 | -7/DSF | Lost 18 parts (3p7n5u3w) 3074 | -7/DSF | Destroyed by S-27 Virus with Autogun Last Messages --------------- as-71564 destroyed. as-07724 destroyed. Destroyed Asb. Hover Unit. as-73852 destroyed. Acquired 3 matter. as-58649 destroyed. as-22153 destroyed. Acquired 2 matter. Acquired 6 matter. Acquired 13 matter. Acquired 8 matter. The unstable cave ceiling collapses. as-65360 destroyed. D-53 Grenadier destroyed. C-30 ARC bursts open, deploying its payload. S-27 Virus unfolds itself. Acquired 27 matter. The unstable cave ceiling collapses. Acquired Lgt. Nuclear Core. Acquired Fission Core. Map ----- +----------------------------------------------------+ | | | | | | | | | ???????????????????????????????????????????? | | ???????????????????????????????????????????? | | ???????????????????????????????????????????? | | ???????????????????????????????????????????? | | ????????????????????????????????""?????????? | | ??????????????????######???????#"#?????????? | | ??????????????##### ##"#????####"####??????? | | ??????????????# !!! ! ##### ##"""""#??????? | | ??????????????# !!! !!!#! """"#??????? | | ??????????????# "%<""##"????? | | ??????????????# %"""""???#? | | ??????????????### # # #! [% ""##?????? | | ??????????????### #!!###* ###??????? | | ??????????????# % ######## ##???????? | | ??????????????# "##????# #???????? | | ??????????????# % #????#?# % ###??##?? | | ??????????????### % #?????### ## #?????? | | ??????????????# ! ##????# !# ##????? | | ??????????????# ####?## !# ##???? | | ??????????????# # ### # #???? | | ######??#### # # # ## ## #???? | | # #? # # @#[[[ # # ##??? | | # ## ] # =#[[[## # #??? | | #!! s ## #??? | | #!! s ### #?? | | #!! % % % #?? | | #!! ## !! ! ## = # ### ##?? | | #!! #?!?? !!! # # ## #?#? | | ### ###??# # # # ####### ## ## ##?? | | ?# #??? ??#! !%]]####?#?# ## #?? | | ?# #??????# ]]#??????# [## #?? | | ?# #??????# %]]#?????## [### ###?? | | ?## ###??????## ##??#??#### ###?##???? | | ?# !!#??????#! !#??????# [#???????? | | ?# !!#??????#! !!#?????## [#????#??? | | ?## ##########!! !!########## ##???????? | | ### ### # ### ^### #[[###[ ###??????? | | #"" ## # ### ### #[[## ""###????? | | """ """""#???? | | #"" ^ ""##"#???? | | #"""""##!!#!!!#[[ //#[[[# ##"""""#??????? | | #"""""#########[[ //#########"""""#??????? | | ####"##???????#########???????##"####??????? | | ???#"#?????????????????????????#"#?????????? | | ???""#?????????????????????????#""?????????? | | ???##??????????????????????????????????????? | +----------------------------------------------------+ Best States ------------- Heat Dissipation 34 Energy Generation 18 Energy Capacity 310 Matter Stores 300 Matter Capacity 300 Sight Range 16 Robot Scan Range 15 Terrain Scan Range 14 Terrain Scan Density 110 ECM Strength 1 Armor Coverage 225 Resistance: KI 20 Resistance: TH 20 Resistance: EX 20 Resistance: EM 20 Resistance: I 20 Resistance: S 20 Resistance: P 20 Evasion (%) 72 Recoil Reduction 4 Offensive Hacking 20 Item Schematics ----------------- Arm. Treads | -8/Materials | Scanalyzed Robot Schematics ------------------ None Fabricated ------------ Nothing Alien Tech Used ----------------- None Achievements -------------- I Spy Let's See Who's Tougher Part-time Excavator Challenges ------------ None Game ------ Seed SmartbombSwarmBooster Manual? 0 Play Time 01:15:04 Cumulative 7.6 hours Start 2024.04.08 @ 15:16:19 End 2024.04.08 @ 17:05:10 Sessions 1 Manual Loads 0 Difficulty Adventurer Special Mode None Game No. 4 Rogue 0 Adventurer 4 Explorer 0 Win Type - Total 0 Types 0/0/0/0/0/0/0/0/0 Lore% 4 Gallery% 11 Achievement% 11 Wizard Run 0 Options --------- Layout 1 ASCII 0 Keyboard 0 Movement Mouse Keybinds 0 Fullscreen 0 Font 20/SmallcapsGlow Map View 50x35 Zoom Use 0% Tactical HUD 0 Map Filters NONE Filters NONE Steam 1 RUN: 3d6d4c78-8633-4610-9133-7ce385b44256